[Event "WTCC-65 2018"]
[Site "Radebeul"]
[Date "2018.07.14"]
[Round "8"]
[White "Khanukov, Boris"]
[Black "Karasev, Vladimir I"]
[Result "1-0"]
[ECO "A04"]
[WhiteElo "2273"]
[BlackElo "2337"]
[Annotator "NA"]
[PlyCount "101"]
[EventDate "2018.07.07"]
[EventType "team-tourn"]
[EventCountry "GER"]
[SourceTitle "playchess.com"]
[Source "ChessBase"]
[SourceQuality "1"]
[TimeControl "40/5400+30:1800+30"]

1. Nf3 {[%emt 0:00:00]} c5 {[%emt 0:03:18]} 2. c4 {[%emt 0:00:00]} Nf6 {[%emt 0:00:15]} 3. g3 {[%emt 0:00:27]} b6 {[%emt 0:00:23]} 4. Bg2 {[%emt 0:00:14]} Bb7 {[%emt 0:00:06]} 5. O-O {[%emt 0:00:18]} e6 {[%emt 0:00:11]} 6. Nc3 {[%emt 0:00:25]} a6 {[%emt 0:05:34]} 7. b3 {[%emt 0:05:27]} Be7 {[%emt 0:03:07]} 8. Bb2 {[%emt 0:01:04]} O-O {[%emt 0:00:31]} 9. d4 {[%emt 0:00:14]} cxd4 {[%emt 0:03:38]} 10. Qxd4 {[%emt 0:00:18]} d6 {[%emt 0:05:20]} 11. Rad1 {[%emt 0:08:03]} Nbd7 {[%emt 0:09:20]} 12. Ng5 {[%emt 0:04:55] A30: Symmetrical English: Double Fianchetto and Hedgehog} Bxg2 {[%emt 0:00:33]} 13. Kxg2 {[%emt 0:00:07]} b5 $146 {[%emt 0:10:25]} ({Predecessor:} 13... Qc7 14. Nge4 Rfd8 15. f3 Qc6 16. Nxf6+ Nxf6 17. Rc1 Qb7 18. a4 d5 19. cxd5 Bc5 20. Qd2 exd5 21. Nd1 Qe7 {½-½ (35) Miroiu,G (2325)-Filip,L (2454) Arad 2014}) 14. Nge4 {[%emt 0:16:52]} bxc4 {[%emt 0:01:51]} 15. bxc4 {[%emt 0:02:05]} Qb6 {[%emt 0:04:10]} 16. Ba3 {[%emt 0:05:42]} Rfc8 {[%emt 0:12:46]} 17. Bxd6 {[%emt 0:02:49]} Nxe4 {[%emt 0:10:12]} 18. Nxe4 {[%emt 0:08:41]} Bxd6 {[%emt 0:04:13]} 19. Nxd6 {[%emt 0:01:58]} Qxd4 {[%emt 0:04:19]} 20. Rxd4 {[%emt 0:00:13]} Rc7 {[%emt 0:00:56]} 21. Rfd1 {[%emt 0:04:30]} Ne5 {[%emt 0:06:15]} 22. Nb5 {[%emt 0:05:02]} Re7 {[%emt 0:04:34]} 23. Nc7 {[%emt 0:07:33]} Rf8 {[%emt 0:00:08]} 24. Nxa6 {[%emt 0:00:11]} g5 {[%emt 0:02:08]} 25. c5 {[%emt 0:01:20]} Nc6 {[%emt 0:01:47]} 26. Rd6 {[%emt 0:00:32]} Rc8 {[%emt 0:00:21]} 27. Rb1 {[%emt 0:01:19]} Ra7 {[%emt 0:02:33]} 28. Rb6 {[%emt 0:01:31]} Ne5 {[%emt 0:00:37]} 29. Rb5 {[%emt 0:07:31]} Nc4 {[%emt 0:01:41]} 30. Rd4 {[%emt 0:03:13]} Rxa6 {[%emt 0:00:07]} 31. Rxc4 {[%emt 0:00:04]} Rxa2 {[%emt 0:00:07]} 32. c6 {[%emt 0:00:18]} h6 {[%emt 0:01:24]} 33. c7 {[%emt 0:00:24]} Raa8 {[%emt 0:00:08]} 34. Rb7 {[%emt 0:02:41]} Kg7 {[%emt 0:01:21]} 35. h4 {[%emt 0:02:48]} Kf6 {[%emt 0:00:24]} 36. hxg5+ {[%emt 0:01:55]} hxg5 {[%emt 0:00:02]} 37. Rc5 {[%emt 0:01:13]} Kg6 {[%emt 0:02:21]} 38. e4 {[%emt 0:00:50]} g4 {[%emt 0:00:29]} 39. e5 {[%emt 0:00:24]} Kf5 {[%emt 0:00:12]} 40. Rb4 {[%emt 0:00:11]} Kg5 {[%emt 0:00:27]} 41. Rf4 {[%emt 0:30:16]} Rf8 {[%emt 0:07:23]} 42. Kf1 {[%emt 0:00:00]} Rh8 {[%emt 0:14:42]} 43. Ke2 {[%emt 0:00:00]} Ra2+ {[%emt 0:01:45]} 44. Kd3 {[%emt 0:00:00]} Ra3+ {[%emt 0:00:34]} 45. Rc3 {[%emt 0:00:00]} Rxc3+ {[%emt 0:05:35]} 46. Kxc3 {[%emt 0:00:00]} Rc8 {[%emt 0:02:48]} 47. Rxf7 {[%emt 0:00:00]} Kg6 {[%emt 0:00:02]} 48. Re7 {[%emt 0:00:00]} (48. Rd7 $142 Kg5 49. Kd4) 48... Kf5 {[%emt 0:00:14]} 49. Kd4 {[%emt 0:00:00]} Ra8 {[%emt 0:00:18]} 50. Rf7+ {[%emt 0:00:00]} Kg5 {[%emt 0:00:15]} 51. Ke4 1-0

[Event "WTCC-65 2018"]
[Site "Radebeul"]
[Date "2018.07.14"]
[Round "8"]
[White "Ackermann, Hans Werner"]
[Black "Povah, Nigel E"]
[Result "0-1"]
[ECO "A06"]
[WhiteElo "2267"]
[BlackElo "2245"]
[Annotator "NA"]
[PlyCount "66"]
[EventDate "2018.07.07"]
[EventType "team-tourn"]
[EventCountry "GER"]
[SourceTitle "playchess.com"]
[Source "ChessBase"]
[SourceQuality "1"]
[TimeControl "40/5400+30:1800+30"]

1. Nf3 {[%emt 0:00:00]} d5 {[%emt 0:00:00]} 2. b3 {[%emt 0:00:00]} Bg4 {[%emt 0:00:10]} 3. Bb2 {[%emt 0:00:03]} Nd7 {[%emt 0:00:14]} 4. e3 {[%emt 0:01:42]} e5 {[%emt 0:00:23]} 5. h3 {[%emt 0:00:14]} Bxf3 {[%emt 0:00:09]} 6. Qxf3 {[%emt 0:00:07]} c6 {[%emt 0:00:05]} 7. d3 {[%emt 0:00:05]} Bd6 {[%emt 0:04:55]} 8. Nd2 {[%emt 0:01:30]} Ne7 {[%emt 0:00:40]} 9. g3 {[%emt 0:06:59]} O-O {[%emt 0:01:42]} 10. Qe2 {[%emt 0:00:19]} b5 {[%emt 0:08:32]} 11. Bg2 {[%emt 0:01:52]} a5 {[%emt 0:05:23]} 12. a3 {[%emt 0:04:37]} Qb6 {[%emt 0:07:42]} 13. O-O {[%emt 0:09:09]} f5 {[%emt 0:02:32]} 14. Nf3 {[%emt 0:08:34]} Rae8 {[%emt 0:02:05]} 15. Rab1 {[%emt 0:07:22]} f4 {[%emt 0:10:06]} 16. gxf4 {[%emt 0:11:30]} exf4 {[%emt 0:02:06]} 17. Nd4 {[%emt 0:13:46]} Ng6 {[%emt 0:04:20]} 18. c4 {[%emt 0:10:36]} f3 {[%emt 0:14:09]} 19. Nxf3 {[%emt 0:02:16]} Bb8 {[%emt 0:12:36]} 20. Rfc1 {[%emt 0:07:39]} c5 {[%emt 0:06:57]} 21. Qd1 {[%emt 0:02:07]} d4 {[%emt 0:04:00]} 22. Nxd4 {[%emt 0:00:31]} cxd4 {[%emt 0:00:31]} 23. Bxd4 {[%emt 0:00:03]} Qd6 {[%emt 0:01:22]} 24. cxb5 {[%emt 0:00:20]} Rxf2 {[%emt 0:02:50]} 25. Kxf2 {[%emt 0:06:45]} Qg3+ {[%emt 0:00:29]} 26. Kf1 {[%emt 0:01:36]} Rf8+ {[%emt 0:00:43]} 27. Qf3 {[%emt 0:00:08]} Rxf3+ {[%emt 0:00:39]} 28. Bxf3 {[%emt 0:00:05]} Qxf3+ {[%emt 0:00:10]} 29. Ke1 {[%emt 0:00:05]} Be5 30. Ba7 {[%emt 0:01:46]} Nh4 {[%emt 0:04:19]} 31. Rc8+ {[%emt 0:01:19]} Kf7 {[%emt 0:00:54]} 32. b4 Qg2 33. Kd1 {[%emt 0:02:49]} Nf3 {[%emt 0:00:37]} 0-1

[Event "WTCC-65 2018"]
[Site "Radebeul"]
[Date "2018.07.14"]
[Round "8"]
[White "Stebbings, Anthony J"]
[Black "Kierzek, Matthias, Dr."]
[Result "1-0"]
[ECO "D10"]
[WhiteElo "2257"]
[BlackElo "2247"]
[Annotator "NA"]
[PlyCount "57"]
[EventDate "2018.07.07"]
[EventType "team-tourn"]
[EventCountry "GER"]
[SourceTitle "playchess.com"]
[Source "ChessBase"]
[SourceQuality "1"]
[TimeControl "40/5400+30:1800+30"]

1. d4 {[%emt 0:00:00]} d5 {[%emt 0:00:00]} 2. c4 {[%emt 0:00:00]} c6 {[%emt 0:00:00]} 3. Nc3 {[%emt 0:00:00]} Nf6 {[%emt 0:00:00]} 4. e3 {[%emt 0:00:00]} Bf5 {[%emt 0:00:05]} 5. cxd5 {[%emt 0:00:00]} cxd5 {[%emt 0:00:06]} 6. Qb3 {[%emt 0:00:03]} Nc6 {[%emt 0:00:04]} 7. Qxb7 {[%emt 0:00:06]} Bd7 {[%emt 0:00:04]} 8. Qb3 {[%emt 0:00:06]} Rb8 {[%emt 0:00:04]} 9. Qd1 {[%emt 0:00:09]} e5 {[%emt 0:00:04]} 10. dxe5 {[%emt 0:00:08]} Nxe5 {[%emt 0:00:04]} 11. Be2 {[%emt 0:00:13]} Bd6 {[%emt 0:00:32]} 12. Nf3 {[%emt 0:00:15]} O-O {[%emt 0:00:34]} 13. O-O {[%emt 0:00:24]} Qe7 {[%emt 0:00:24]} 14. Nxe5 {[%emt 0:01:29]} Bxe5 {[%emt 0:00:10]} 15. Bf3 {[%emt 0:13:41]} Rfd8 {[%emt 0:24:37]} 16. Qd3 {[%emt 0:20:17]} Bc6 {[%emt 0:08:06]} 17. Qf5 {[%emt 0:14:44]} Ne4 {[%emt 0:05:46]} 18. Bxe4 {[%emt 0:11:44]} dxe4 {[%emt 0:00:33]} 19. a4 {[%emt 0:01:46]} Rd6 {[%emt 0:21:04]} 20. Nb5 {[%emt 0:06:28]} Rd5 {[%emt 0:15:23]} 21. Qg4 {[%emt 0:01:04]} Bd7 {[%emt 0:03:01]} 22. Qe2 {[%emt 0:01:15]} Rbxb5 {[%emt 0:09:31]} 23. axb5 {[%emt 0:00:37]} Bxb5 {[%emt 0:00:06]} 24. Qc2 {[%emt 0:00:31]} Bxh2+ {[%emt 0:01:43]} 25. Kxh2 {[%emt 0:00:18]} Bxf1 {[%emt 0:00:04]} 26. Rxa7 {[%emt 0:01:51]} Qh4+ {[%emt 0:02:26]} 27. Kg1 {[%emt 0:00:02]} Bb5 {[%emt 0:00:57]} 28. Ra8+ {[%emt 0:02:08]} Rd8 {[%emt 0:00:06]} 29. Qc8 {[%emt 0:00:25]} 1-0

[Event "WTCC-65 2018"]
[Site "Radebeul"]
[Date "2018.07.14"]
[Round "8"]
[White "Bernard, Christophe"]
[Black "Malmdin, Nils Ake"]
[Result "1/2-1/2"]
[ECO "A61"]
[WhiteElo "2253"]
[BlackElo "2138"]
[Annotator "NA"]
[PlyCount "120"]
[EventDate "2018.07.07"]
[EventType "team-tourn"]
[EventCountry "GER"]
[SourceTitle "playchess.com"]
[Source "ChessBase"]
[SourceQuality "1"]
[TimeControl "40/5400+30:1800+30"]

1. d4 {[%emt 0:00:00]} Nf6 {[%emt 0:00:12]} 2. Nf3 {[%emt 0:00:00]} e6 {[%emt 0:01:43]} 3. c4 {[%emt 0:00:20]} c5 {[%emt 0:00:10]} 4. d5 {[%emt 0:05:05]} exd5 {[%emt 0:00:13]} 5. cxd5 {[%emt 0:00:03]} d6 {[%emt 0:00:23]} 6. Nc3 {[%emt 0:00:03]} g6 {[%emt 0:00:28]} 7. e4 {[%emt 0:00:37]} Bg7 {[%emt 0:00:47]} 8. h3 {[%emt 0:00:36]} O-O {[%emt 0:01:46]} 9. Bd3 {[%emt 0:05:43]} a6 {[%emt 0:06:06]} 10. a4 {[%emt 0:00:31]} Re8 {[%emt 0:00:49]} 11. O-O {[%emt 0:00:35]} Nbd7 {[%emt 0:04:08]} 12. Re1 {[%emt 0:01:52]} Qe7 {[%emt 0:21:09]} 13. Bf4 {[%emt 0:12:50]} Nh5 {[%emt 0:01:23] A70: Modern Benoni: 6 e4 g6 7 Nf3} 14. Bg5 {[%emt 0:00:31]} (14. Bh2 Rb8 15. g4 Nhf6 16. e5 dxe5 17. Nxe5 Nxe5 18. Rxe5 Qxe5 19. Bxe5 Rxe5 20. Qb3 h5 21. Qb6 {0-1 (47) Radjabov,T (2747)-Ivanchuk,V (2729) Odessa 2007}) 14... Bf6 {[%emt 0:02:02] LiveBook: 8 Games} 15. Bd2 {[%emt 0:02:50]} Ne5 {[%emt 0:06:59]} 16. Be2 {[%emt 0:00:09]} Nxf3+ {[%emt 0:06:48]} 17. Bxf3 {[%emt 0:00:09]} Ng7 {[%emt 0:00:10]} 18. Qc2 $146 {[%emt 0:03:19]} ({Predecessor:} 18. a5 Be5 19. Na4 Bd7 20. Nb6 Rad8 21. Nc4 {1-0 (44) Villeneuve,A (2345)-Lecuyer,C (2310) France 1991}) 18... Rb8 {[%emt 0:01:33]} 19. a5 {[%emt 0:03:50]} Be5 {[%emt 0:12:06]} 20. Na4 {[%emt 0:06:24]} Bd7 {[%emt 0:08:34]} 21. Nb6 {[%emt 0:01:28]} Bb5 {[%emt 0:00:25]} 22. Bc3 {[%emt 0:01:12]} Qf6 {[%emt 0:01:49]} 23. Rac1 {[%emt 0:03:20]} Qf4 {[%emt 0:03:16]} 24. Bxe5 {[%emt 0:00:15]} Rxe5 {[%emt 0:02:19]} 25. Qc3 {[%emt 0:02:51]} Qh6 {[%emt 0:02:44]} 26. b4 {[%emt 0:01:18]} Rbe8 {[%emt 0:04:08]} 27. bxc5 {[%emt 0:06:33]} dxc5 {[%emt 0:00:16]} 28. d6 {[%emt 0:06:54]} Qg5 {[%emt 0:02:48]} 29. Nd5 {[%emt 0:01:38]} Qd8 {[%emt 0:00:44]} 30. Ne7+ {[%emt 0:00:18]} R8xe7 {[%emt 0:00:06]} 31. dxe7 {[%emt 0:00:11]} Qxe7 {[%emt 0:00:21]} 32. Red1 {[%emt 0:00:08]} Bc6 {[%emt 0:01:08]} 33. g3 {[%emt 0:17:39]} Ne8 {[%emt 0:01:32]} 34. Bg2 {[%emt 0:00:21]} h5 {[%emt 0:02:19]} 35. f4 {[%emt 0:01:35]} Rxe4 {[%emt 0:01:03]} 36. Re1 {[%emt 0:01:08]} Nf6 {[%emt 0:00:20]} 37. Bxe4 {[%emt 0:00:48]} Nxe4 {[%emt 0:00:12]} 38. Qe5 {[%emt 0:01:37]} Qd7 {[%emt 0:02:33]} 39. Rcd1 {[%emt 0:06:02]} Nd2 {[%emt 0:00:39]} 40. Qe8+ {[%emt 0:00:08]} Qxe8 {[%emt 0:00:38]} 41. Rxe8+ {[%emt 0:30:02]} Bxe8 {[%emt 0:30:01]} 42. Rxd2 {[%emt 0:00:01]} Bb5 {[%emt 0:01:16]} 43. Rd8+ {[%emt 0:00:11]} Kg7 {[%emt 0:00:21]} 44. Rd5 {[%emt 0:00:18]} c4 {[%emt 0:00:42]} 45. Kf2 {[%emt 0:00:01]} Kf6 {[%emt 0:00:00]} 46. Ke3 {[%emt 0:00:00]} Ke6 {[%emt 0:00:00]} 47. Kd4 {[%emt 0:00:00]} Ke7 {[%emt 0:00:00]} 48. h4 {[%emt 0:00:00]} f6 $2 {[%emt 0:00:00]} (48... c3 49. Re5+ (49. Kxc3 Bc6 $16) 49... Kd6 50. Kxc3 Bc6) 49. Rc5 {[%emt 0:00:00]} Ke6 {[%emt 0:00:00]} 50. Rc7 {[%emt 0:00:00]} Bc6 {[%emt 0:00:00]} 51. Kxc4 {[%emt 0:00:00]} Kf5 {[%emt 0:00:59]} 52. Rg7 {[%emt 0:00:00]} Be4 {[%emt 0:00:13]} 53. Kd4 {[%emt 0:00:00]} Bf3 $1 $11 {[%emt 0:00:33] und Schwarz ist OK.} 54. Kc5 {[%emt 0:00:00]} Be4 {[%emt 0:00:36]} 55. Re7 {[%emt 0:00:00]} Bf3 {[%emt 0:00:37]} 56. Rg7 {[%emt 0:00:00]} Be4 {[%emt 0:00:03]} 57. Kd4 {[%emt 0:01:56]} Bc6 $2 {[%emt 0:00:04]} 58. Ke3 $18 {[%emt 0:00:08]} Bh1 {[%emt 0:00:22]} 59. Rc7 {[%emt 0:03:07]} Bc6 {[%emt 0:00:14]} 60. Rc8 {[%emt 0:00:33]} Kg4 {[%emt 0:00:59]} 1/2-1/2

[Event "WTCC-65 2018"]
[Site "Radebeul"]
[Date "2018.07.14"]
[Round "8"]
[White "Bernard, Christophe"]
[Black "Malmdin, Nils-Ake"]
[Result "1/2-1/2"]
[ECO "A61"]
[WhiteElo "2253"]
[BlackElo "2138"]
[Annotator "NA"]
[PlyCount "120"]
[EventDate "2018.07.07"]
[EventType "team-tourn"]
[EventCountry "GER"]
[SourceTitle "playchess.com"]
[Source "ChessBase"]
[SourceQuality "1"]
[TimeControl "40/5400+30:1800+30"]

1. d4 {[%emt 0:00:00]} Nf6 {[%emt 0:00:12]} 2. Nf3 {[%emt 0:00:00]} e6 {[%emt 0:01:43]} 3. c4 {[%emt 0:00:20]} c5 {[%emt 0:00:10]} 4. d5 {[%emt 0:05:05]} exd5 {[%emt 0:00:13]} 5. cxd5 {[%emt 0:00:03]} d6 {[%emt 0:00:23]} 6. Nc3 {[%emt 0:00:03]} g6 {[%emt 0:00:28]} 7. e4 {[%emt 0:00:37]} Bg7 {[%emt 0:00:47]} 8. h3 {[%emt 0:00:36]} O-O {[%emt 0:01:46]} 9. Bd3 {[%emt 0:05:43]} a6 {[%emt 0:06:06]} 10. a4 {[%emt 0:00:31]} Re8 {[%emt 0:00:49]} 11. O-O {[%emt 0:00:35]} Nbd7 {[%emt 0:04:08]} 12. Re1 {[%emt 0:01:52]} Qe7 {[%emt 0:21:09]} 13. Bf4 {[%emt 0:12:50]} Nh5 {[%emt 0:01:23]} 14. Bg5 {[%emt 0:00:31]} Bf6 {[%emt 0:02:02]} 15. Bd2 {[%emt 0:02:50]} Ne5 {[%emt 0:06:59]} 16. Be2 {[%emt 0:00:09]} Nxf3+ {[%emt 0:06:48]} 17. Bxf3 {[%emt 0:00:09]} Ng7 {[%emt 0:00:10]} 18. Qc2 {[%emt 0:03:19]} Rb8 {[%emt 0:01:33]} 19. a5 {[%emt 0:03:50]} Be5 {[%emt 0:12:06]} 20. Na4 {[%emt 0:06:24]} Bd7 {[%emt 0:08:34]} 21. Nb6 {[%emt 0:01:28]} Bb5 {[%emt 0:00:25]} 22. Bc3 {[%emt 0:01:12]} Qf6 {[%emt 0:01:49]} 23. Rac1 {[%emt 0:03:20]} Qf4 {[%emt 0:03:16]} 24. Bxe5 {[%emt 0:00:15]} Rxe5 {[%emt 0:02:19]} 25. Qc3 {[%emt 0:02:51]} Qh6 {[%emt 0:02:44]} 26. b4 {[%emt 0:01:18]} Rbe8 {[%emt 0:04:08]} 27. bxc5 {[%emt 0:06:33]} dxc5 {[%emt 0:00:16]} 28. d6 {[%emt 0:06:54]} Qg5 {[%emt 0:02:48]} 29. Nd5 {[%emt 0:01:38]} Qd8 {[%emt 0:00:44]} 30. Ne7+ {[%emt 0:00:18]} R8xe7 {[%emt 0:00:06]} 31. dxe7 {[%emt 0:00:11]} Qxe7 {[%emt 0:00:21]} 32. Red1 {[%emt 0:00:08]} Bc6 {[%emt 0:01:08]} 33. g3 {[%emt 0:17:39]} Ne8 {[%emt 0:01:32]} 34. Bg2 {[%emt 0:00:21]} h5 {[%emt 0:02:19]} 35. f4 {[%emt 0:01:35]} Rxe4 {[%emt 0:01:03]} 36. Re1 {[%emt 0:01:08]} Nf6 {[%emt 0:00:20]} 37. Bxe4 {[%emt 0:00:48]} Nxe4 {[%emt 0:00:12]} 38. Qe5 {[%emt 0:01:37]} Qd7 {[%emt 0:02:33]} 39. Rcd1 {[%emt 0:06:02]} Nd2 {[%emt 0:00:39]} 40. Qe8+ {[%emt 0:00:08]} Qxe8 {[%emt 0:00:38]} 41. Rxe8+ {[%emt 0:30:02]} Bxe8 {[%emt 0:30:01]} 42. Rxd2 {[%emt 0:00:01]} Bb5 {[%emt 0:01:16]} 43. Rd8+ {[%emt 0:00:11]} Kg7 {[%emt 0:00:21]} 44. Rd5 {[%emt 0:00:18]} c4 {[%emt 0:00:42]} 45. Kf2 {[%emt 0:00:01]} Kf6 {[%emt 0:00:00]} 46. Ke3 {[%emt 0:00:00]} Ke6 {[%emt 0:00:00]} 47. Kd4 {[%emt 0:00:00]} Ke7 {[%emt 0:00:00]} 48. h4 {[%emt 0:00:00]} f6 {[%emt 0:00:00]} 49. Rc5 {[%emt 0:00:00]} Ke6 {[%emt 0:00:00]} 50. Rc7 {[%emt 0:00:00]} Bc6 {[%emt 0:00:00]} 51. Kxc4 {[%emt 0:00:00]} Kf5 {[%emt 0:00:59]} 52. Rg7 {[%emt 0:00:00]} Be4 {[%emt 0:00:13]} 53. Kd4 {[%emt 0:00:00]} Bf3 {[%emt 0:00:33]} 54. Kc5 {[%emt 0:00:00]} Be4 {[%emt 0:00:36]} 55. Re7 {[%emt 0:00:00]} Bf3 {[%emt 0:00:37]} 56. Rg7 {[%emt 0:00:00]} Be4 {[%emt 0:00:03]} 57. Kd4 {[%emt 0:01:56]} Bc6 {[%emt 0:00:04]} 58. Ke3 {[%emt 0:00:08]} Bh1 {[%emt 0:00:22]} 59. Rc7 {[%emt 0:03:07]} Bc6 {[%emt 0:00:14]} 60. Rc8 {[%emt 0:00:33]} Kg4 {[%emt 0:00:59]} 1/2-1/2

[Event "WTCC-65 2018"]
[Site "Radebeul"]
[Date "2018.07.14"]
[Round "8"]
[White "Bartsch, Berthold"]
[Black "Emerson, Roger"]
[Result "1-0"]
[ECO "A00"]
[WhiteElo "2248"]
[BlackElo "2211"]
[Annotator "NA"]
[PlyCount "71"]
[EventDate "2018.07.07"]
[EventType "team-tourn"]
[EventCountry "GER"]
[SourceTitle "playchess.com"]
[Source "ChessBase"]
[SourceQuality "1"]
[TimeControl "40/5400+30:1800+30"]

1. g3 {[%emt 0:03:12]} d5 {[%emt 0:05:10]} 2. Bg2 {[%emt 0:00:08]} e5 {[%emt 0:00:19]} 3. c4 {[%emt 0:07:29]} dxc4 {[%emt 0:00:45]} 4. Na3 {[%emt 0:01:22]} Bxa3 {[%emt 0:06:34]} 5. bxa3 {[%emt 0:02:45]} c6 {[%emt 0:05:28]} 6. Rb1 {[%emt 0:18:10]} Ne7 {[%emt 0:08:16]} 7. Qc2 {[%emt 0:02:02]} Bf5 {[%emt 0:02:23]} 8. e4 {[%emt 0:01:31]} Bc8 $11 {[%emt 0:03:55]} ({Besser ist} 8... Be6 $15) 9. Qxc4 {[%emt 0:00:21]} b6 {[%emt 0:03:56]} 10. Bb2 {[%emt 0:03:47]} Ng6 {[%emt 0:02:35]} 11. h4 {[%emt 0:03:12]} h5 {[%emt 0:05:25]} 12. Nf3 {[%emt 0:06:50]} Ba6 {[%emt 0:08:26]} 13. Qc3 {[%emt 0:01:50]} Qd3 {[%emt 0:02:50]} 14. Qxd3 {[%emt 0:00:42]} Bxd3 {[%emt 0:00:10]} 15. Rc1 {[%emt 0:00:08]} f6 {[%emt 0:01:59]} 16. Ng1 {[%emt 0:01:29]} c5 {[%emt 0:04:27]} 17. Ne2 {[%emt 0:01:32]} Nc6 {[%emt 0:01:29]} 18. Bf3 {[%emt 0:03:23]} O-O-O {[%emt 0:04:05]} 19. Bc3 {[%emt 0:00:46]} Nd4 {[%emt 0:01:10]} 20. Bxd4 {[%emt 0:07:33]} exd4 {[%emt 0:00:09]} 21. Bg2 {[%emt 0:03:03]} Kc7 {[%emt 0:01:28]} 22. Nf4 {[%emt 0:02:36]} Nxf4 {[%emt 0:00:32]} 23. gxf4 {[%emt 0:00:01]} Rhe8 {[%emt 0:07:23]} 24. f3 {[%emt 0:01:08]} f5 {[%emt 0:00:14]} 25. e5 {[%emt 0:00:15]} Re6 {[%emt 0:00:32]} 26. Kf2 {[%emt 0:00:11]} Kc6 {[%emt 0:00:48]} 27. Rhg1 {[%emt 0:02:57]} g6 {[%emt 0:00:30]} 28. Bf1 {[%emt 0:02:11]} Bxf1 {[%emt 0:00:41]} 29. Kxf1 {[%emt 0:00:02]} Kd5 {[%emt 0:01:19]} 30. d3 {[%emt 0:00:34]} b5 {[%emt 0:01:49]} 31. Rg2 {[%emt 0:01:04]} c4 {[%emt 0:03:58]} 32. Rb2 {[%emt 0:05:32]} Rb6 {[%emt 0:06:55]} 33. Rxb5+ {[%emt 0:00:56]} Rxb5 {[%emt 0:00:06]} 34. dxc4+ {[%emt 0:00:04]} Kc5 {[%emt 0:00:12]} 35. cxb5+ {[%emt 0:00:06]} Kxb5 {[%emt 0:00:11]} 36. Ke2 {[%emt 0:00:24]} 1-0

[Event "WTCC-65 2018"]
[Site "Radebeul"]
[Date "2018.07.14"]
[Round "8"]
[White "Shushpanov, Vladimir"]
[Black "Gruzmann, Boris"]
[Result "1-0"]
[ECO "C44"]
[WhiteElo "2198"]
[BlackElo "2176"]
[Annotator "NA"]
[PlyCount "119"]
[EventDate "2018.07.07"]
[EventType "team-tourn"]
[EventCountry "GER"]
[SourceTitle "playchess.com"]
[Source "ChessBase"]
[SourceQuality "1"]
[TimeControl "40/5400+30:1800+30"]

1. e4 {[%emt 0:00:00]} e5 {[%emt 0:00:00]} 2. Nf3 {[%emt 0:00:00]} Nc6 {[%emt 0:00:00]} 3. c3 {[%emt 0:00:00]} Nf6 {[%emt 0:00:47]} 4. d4 {[%emt 0:00:10]} exd4 {[%emt 0:06:23]} 5. e5 {[%emt 0:00:24]} Ne4 {[%emt 0:00:27]} 6. cxd4 {[%emt 0:00:52]} d5 {[%emt 0:01:06]} 7. Nc3 {[%emt 0:03:51] C44: Ponziani Opening and Scotch Gambit} Bb4 {[%emt 0:09:47]} (7... Bg4 8. h3 Bh5 9. Be3 Be7 10. Bd3 Bg6 11. O-O O-O 12. Rc1 Qd7 13. Ne2 Nd8 14. Nf4 Ne6 15. Nxg6 fxg6 16. Bxe4 dxe4 {1-0 (57) Nepomniachtchi,I (2719)-Sjugirov,S (2665) Almaty 2016}) 8. Qb3 {[%emt 0:06:30]} O-O {[%emt 0:01:21]} 9. Be3 {[%emt 0:05:59]} a5 {[%emt 0:07:03]} 10. a3 {[%emt 0:06:36]} Bxc3+ {[%emt 0:01:27]} 11. bxc3 {[%emt 0:00:04]} a4 $146 {[%emt 0:00:32]} ({Predecessor:} 11... Bf5 12. a4 b6 13. Be2 f6 14. exf6 Rxf6 {½-½ (35) House,G (2207)-Kaabi,M (2330) Monastir 2013}) 12. Qc2 {[%emt 0:03:31]} Bf5 {[%emt 0:04:04]} 13. Bd3 {[%emt 0:04:07]} Na5 {[%emt 0:16:46]} 14. O-O {[%emt 0:05:32]} Nb3 {[%emt 0:05:03]} 15. Ra2 {[%emt 0:01:42]} c6 {[%emt 0:00:11]} 16. Ne1 {[%emt 0:04:02]} Bg6 {[%emt 0:05:21]} 17. f3 {[%emt 0:06:13]} Ng5 {[%emt 0:00:33]} 18. h4 {[%emt 0:02:30]} Ne6 {[%emt 0:05:52]} 19. h5 {[%emt 0:01:06]} Bxd3 {[%emt 0:00:59]} 20. Nxd3 {[%emt 0:00:19]} c5 {[%emt 0:05:10]} 21. Qf2 {[%emt 0:02:50]} Qa5 {[%emt 0:03:56]} 22. Rc2 {[%emt 0:03:36]} Qb5 {[%emt 0:00:31]} 23. Rd1 {[%emt 0:01:55]} Rac8 {[%emt 0:01:00]} 24. dxc5 {[%emt 0:02:10]} Rfd8 {[%emt 0:04:55]} 25. Nb4 {[%emt 0:05:13]} Qc4 {[%emt 0:01:58]} 26. Qf1 {[%emt 0:02:51]} Qxf1+ {[%emt 0:07:32]} 27. Kxf1 {[%emt 0:00:30]} d4 {[%emt 0:00:41]} 28. cxd4 {[%emt 0:00:43]} Nexd4 {[%emt 0:00:12]} 29. Bxd4 {[%emt 0:05:23]} Rxd4 {[%emt 0:02:16]} 30. Rxd4 {[%emt 0:00:42]} Nxd4 {[%emt 0:00:03]} 31. Rd2 {[%emt 0:03:57]} Nb3 {[%emt 0:01:22]} 32. Rd1 {[%emt 0:05:18]} Nxc5 {[%emt 0:00:28]} 33. Rc1 {[%emt 0:00:16]} Kf8 {[%emt 0:01:21]} 34. Nd3 {[%emt 0:00:27]} b6 {[%emt 0:00:32]} 35. Nxc5 {[%emt 0:00:14]} bxc5 {[%emt 0:02:44]} 36. Rc4 {[%emt 0:02:13]} Ke7 {[%emt 0:00:06]} 37. Ke2 {[%emt 0:00:30]} Ke6 {[%emt 0:00:27]} 38. Rxa4 {[%emt 0:01:38]} Kxe5 {[%emt 0:00:13]} 39. Ra7 {[%emt 0:00:43]} Rf8 {[%emt 0:03:47]} 40. Kd3 {[%emt 0:01:04]} Kf4 {[%emt 0:00:39]} 41. Ra4+ {[%emt 0:30:20]} Kg5 {[%emt 0:32:02]} 42. Rc4 {[%emt 0:02:28]} Rc8 {[%emt 0:00:00]} 43. g4 {[%emt 0:00:00]} f5 {[%emt 0:00:00]} 44. a4 {[%emt 0:00:00]} g6 {[%emt 0:00:00]} 45. hxg6 {[%emt 0:00:00]} hxg6 {[%emt 0:00:00]} 46. a5 {[%emt 0:00:00]} Kf6 {[%emt 0:00:00]} 47. a6 {[%emt 0:00:00]} Ke5 {[%emt 0:00:00]} 48. a7 {[%emt 0:00:00]} Kd5 {[%emt 0:00:00]} 49. Ra4 {[%emt 0:00:00]} Ra8 {[%emt 0:00:00]} 50. g5 {[%emt 0:00:00]} c4+ {[%emt 0:03:35]} 51. Kc3 {[%emt 0:00:00]} Ke5 {[%emt 0:00:04]} 52. Kxc4 {[%emt 0:00:00]} Kf4 {[%emt 0:00:07]} 53. Kb5+ {[%emt 0:00:00]} Kxf3 {[%emt 0:00:11]} 54. Kb6 {[%emt 0:00:00]} f4 {[%emt 0:00:11]} 55. Kb7 {[%emt 0:00:00]} Rxa7+ {[%emt 0:02:35]} 56. Rxa7 {[%emt 0:00:00]} Kg4 {[%emt 0:00:08]} 57. Kc6 {[%emt 0:00:00]} Kxg5 {[%emt 0:00:12]} 58. Kd5 {[%emt 0:00:00]} Kg4 {[%emt 0:00:59]} 59. Ke4 {[%emt 0:00:00]} g5 {[%emt 0:00:27]} 60. Rg7 {[%emt 0:00:00]} 1-0